bitfinex/quotes_ETHUSD_20240907
["timestamp","ask_amount","ask_price","bid_price","bid_amount"]
[1725731099433,3.0,2294.2,2294.0,4.35907]
[1725731099666,2.3615,2294.1,2293.8,4.35949]
[1725731099867,0.53615,2294.0,2293.8,4.35949]
[1725731100170,3.53615,2294.0,2293.8,4.35949]
[1725731100342,3.99231161,2294.0,2293.7,4.35964]
[1725731100551,2.3615,2293.9,2293.7,4.35964]
[1725731100851,5.3615,2293.9,2293.7,4.35964]
[1725731101182,6.45272694,2293.9,2293.7,4.35964]
[1725731101349,6.45272694,2293.9,2293.4,4.36017]
[1725731101350,2.3615,2293.8,2293.4,4.36017]
[1725731101545,3.0,2293.8,2293.4,4.36017]
[1725731101749,2.3615,2293.7,2293.4,4.36017]
[1725731101960,0.53615,2293.6,2293.4,4.36017]
[1725731102160,3.53615,2293.6,2293.4,4.36017]
[1725731102889,3.0,2293.6,2293.5,8.72028]
[1725731103073,2.45616161,2294.0,2293.8,4.35957]
[1725731103074,0.45616161,2294.0,2293.8,4.35957]
[1725731103295,0.45616161,2294.0,2293.9,4.35938]
[1725731103865,0.45616161,2294.0,2293.9,8.71876]
[1725731104471,0.45616161,2294.0,2293.9,9.822026]
[1725731105073,0.45616161,2294.0,2293.9,18.05376381]
[1725731105403,0.45616161,2294.0,2293.9,22.76778805]
[1725731105576,0.45616161,2294.0,2293.9,21.85091088]
[1725731106803,0.45616161,2294.0,2293.9,18.01416483]
[1725731107043,0.45616161,2294.0,2293.9,18.01415375]
[1725731107170,0.45616161,2294.0,2293.9,18.01412911]
[1725731108496,0.45616161,2294.0,2293.9,16.495306]
[1725731108809,0.45616161,2294.0,2293.9,18.01412051]
[1725731109110,0.45616161,2294.0,2293.9,13.65474051]
[1725731109312,0.45616161,2294.0,2293.9,8.71876]
[1725731118523,0.45616161,2294.0,2293.9,4.35938]
[1725731118739,0.45616161,2294.0,2293.9,8.71876]
[1725731119341,0.45616161,2294.0,2293.9,15.50734]
[1725731119639,0.45616161,2294.0,2293.9,19.30423526]
[1725731122847,0.45616161,2294.0,2293.9,10.237522]
[1725731123136,0.45616161,2294.0,2293.9,8.71876]
[1725731125239,0.45616161,2294.0,2293.9,10.2376366]
[1725731125449,0.45616161,2294.0,2293.9,14.5970166]
[1725731125742,0.45616161,2294.0,2293.9,16.94915678]
[1725731125905,0.45616161,2294.0,2293.9,19.22733641]
[1725731126502,0.45616161,2294.0,2293.9,15.43034]
[1725731126702,0.45616161,2294.0,2293.9,19.22726055]
[1725731128625,0.45616161,2294.0,2293.9,20.14278455]
[1725731130905,0.45616161,2294.0,2293.9,19.22726055]
[1725731131626,2.91796161,2294.0,2293.9,3.79684586]
[1725731131965,5.91796161,2294.0,2293.9,4.4343754]
[1725731132254,2.91796161,2294.0,2293.9,4.4343754]
[1725731132544,5.91796161,2294.0,2293.9,4.4343754]
[1725731135233,5.91796161,2294.0,2293.3,0.915524]
[1725731135234,7.09826373,2294.0,2293.4,3.9786254]
[1725731135408,2.4159,2293.7,2293.4,3.9786254]
[1725731135607,5.4159,2293.7,2293.4,3.9786254]
[1725731136606,3.0,2293.7,2292.9,3.386024]
[1725731136814,3.0,2293.8,2293.7,4.35962]
[1725731137026,3.0,2293.8,2293.7,8.71938]
[1725731137225,3.0,2293.9,2293.8,4.35941]
[1725731139320,3.0,2293.9,2293.5,4.36013]
[1725731139529,2.4159,2293.8,2293.5,4.36013]
[1725731139740,0.34995393,2293.7,2293.5,4.36013]
[1725731139940,2.4159,2293.6,2293.5,4.36013]
[1725731140554,5.4159,2293.6,2293.5,4.36013]
[1725731142137,2.4159,2293.5,2293.1,4.36076]
[1725731142337,5.4159,2293.5,2293.1,4.36076]
[1725731142552,0.84159,2293.4,2293.1,4.36076]
[1725731142853,3.84159,2293.4,2293.2,0.07075236]
[1725731144452,3.84159,2293.4,2293.3,0.07072702]
[1725731144657,9.99675369,2293.4,2293.3,0.07072702]
[1725731144862,2.4159,2293.3,2292.9,4.36127]
[1725731145039,6.61557537,2293.3,2292.9,4.36127]
[1725731146454,6.61557537,2293.3,2293.0,0.06864349]
[1725731150431,3.08363929,2293.2,2293.0,0.06864349]
[1725731150661,5.4159,2293.1,2293.0,0.06864349]
[1725731150859,6.68582147,2293.1,2292.7,4.36152]
[1725731151085,6.68582147,2293.1,2293.0,0.06910973]
[1725731151361,6.68582147,2293.1,2292.7,4.36152]
[1725731151523,6.68582147,2293.1,2292.7,8.72309]
[1725731151720,2.4159,2293.0,2292.8,0.06950896]
[1725731151964,2.4159,2293.0,2292.7,4.36152]
[1725731151965,3.19284608,2292.9,2292.5,4.36204]
[1725731152262,2.4159,2292.8,2292.6,0.06982478]
[1725731152569,5.4159,2292.8,2292.6,0.06982478]
[1725731152863,0.48918783,2292.7,2292.6,0.06982478]
[1725731153066,3.48918783,2292.7,2292.6,0.06982478]
[1725731153263,3.48918783,2292.7,2292.4,4.36212]
[1725731153438,3.48918783,2292.7,2292.6,0.06982478]
[1725731153632,3.48918783,2292.7,2292.5,0.06998271]
[1725731153835,2.96481878,2292.6,2292.3,8.72464]
[1725731154158,3.0,2292.5,2292.3,4.36231]
[1725731155049,3.0,2292.5,2292.3,8.72465]
[1725731155627,3.0,2292.5,2292.3,8.72464]
[1725731155824,3.0,2292.5,2291.9,4.36316]
[1725731155825,3.0,2292.5,2292.1,4.36264]
[1725731156050,3.0,2292.5,2291.9,4.36316]
[1725731156051,1.43853117,2292.4,2291.9,4.36316]
[1725731156256,2.3805,2292.3,2291.9,8.72626]
[1725731156459,5.3805,2292.3,2291.9,8.72626]
[1725731156964,5.3805,2292.3,2292.0,4.363]
[1725731157132,0.68190312,2292.2,2292.0,4.363]
[1725731157332,3.68190312,2292.2,2292.0,4.363]
[1725731158227,2.3805,2292.1,2291.7,4.36352]
[1725731158431,5.3805,2292.1,2291.9,4.36318]
[1725731159161,5.3805,2292.1,2291.9,8.72636]
[1725731159731,5.3805,2292.1,2292.0,4.363]
[1725731159932,3.0,2292.1,2292.0,9.598618]
[1725731160166,5.3805,2292.7,2292.4,8.7243]
[1725731160366,5.94041389,2292.7,2292.4,4.36214]
[1725731160675,0.55991389,2292.6,2292.2,4.36246]
[1725731160870,2.0,2292.5,2292.2,4.36246]
[1725731161032,2.0,2292.5,2292.1,4.36279]
[1725731161033,2.3805,2292.3,2292.1,4.36279]
[1725731161234,2.3805,2292.3,2292.2,4.36262]
[1725731161538,2.3805,2292.3,2292.1,8.72548]
[1725731161539,5.3805,2292.3,2292.1,8.72548]
[1725731161958,5.3805,2292.3,2292.1,4.36269]
[1725731163672,2.0,2292.2,2291.4,2.3078]
[1725731163831,5.0,2292.2,2291.9,4.3631]
[1725731164033,5.0,2292.2,2292.0,4.363]
[1725731164562,3.0,2292.2,2292.0,4.363]
[1725731164772,5.3805,2292.3,2292.0,4.363]
[1725731164953,0.93757551,2292.2,2292.0,4.363]
[1725731165144,3.93757551,2292.2,2292.0,4.363]
[1725731166755,3.0,2292.2,2292.1,4.36281]
[1725731166968,3.6497466,2292.2,2291.5,4.36384]
[1725731167146,10.25008305,2292.1,2291.6,4.36376]
[1725731168275,7.86958305,2292.1,2291.5,4.36384]
[1725731168479,2.3805,2292.0,2291.5,4.36382]
[1725731168772,3.47440103,2292.0,2291.5,4.36382]
[1725731168936,3.0,2291.9,2291.5,4.36382]
[1725731169359,1.09390103,2292.0,2291.5,4.36382]
[1725731169360,2.3805,2291.8,2291.5,4.36382]
[1725731169881,4.3805,2291.8,2291.2,4.36435]
[1725731170030,3.59461915,2291.7,2291.4,4.36403]
[1725731170471,3.59461915,2291.7,2291.4,8.72808]
[1725731170644,3.59461915,2291.7,2291.5,4.36392]
[1725731172138,3.59461915,2291.7,2291.4,8.72807]
[1725731172335,3.59461915,2291.7,2291.4,4.36403]
[1725731172575,3.59461915,2291.7,2291.4,8.72804]
[1725731172773,3.59461915,2291.7,2291.4,4.36401]
[1725731172985,0.79751192,2291.6,2291.4,4.36401]
[1725731173287,0.79751192,2291.6,2290.7,8.10473369]
[1725731173288,2.3805,2291.1,2290.5,4.36569]
[1725731173486,3.73926369,2290.8,2290.3,4.3661]
[1725731173781,2.0,2290.5,2290.2,1.37328601]
[1725731173982,2.0,2290.5,2290.1,1.83104801]
[1725731174189,2.0,2290.5,2290.0,4.36666]
[1725731174353,2.3805,2290.4,2290.2,4.3664]
[1725731174537,5.1305,2290.4,2290.0,4.36666]
[1725731175251,5.1305,2290.4,2289.8,4.36706]
[1725731175441,5.1305,2290.4,2289.9,4.36686]
[1725731175778,5.1305,2290.4,2290.0,4.36679]
[1725731176136,5.1305,2290.4,2290.1,0.07505936]
[1725731176387,3.0,2290.4,2290.1,0.07505936]
[1725731176682,0.4569,2290.6,2290.5,4.36585]
[1725731176839,0.4569,2290.6,2290.3,4.36617]
[1725731177034,0.4569,2290.6,2290.5,0.07512483]
[1725731177246,0.4569,2290.6,2290.4,0.07528305]
[1725731177576,0.4569,2290.6,2290.5,0.07512483]
[1725731177880,0.4569,2290.6,2290.3,4.36617]
[1725731178180,0.4569,2290.6,2290.4,0.07527812]
[1725731178756,3.4569,2290.6,2290.4,0.07527812]
[1725731179486,3.0,2290.6,2290.4,0.07527812]
[1725731180965,3.0,2290.6,2290.5,4.36585]
[1725731181179,3.0,2290.6,2290.5,4.44094038]
[1725731181484,2.08724951,2290.6,2290.5,9.68749442]
[1725731181686,2.0,2291.0,2290.7,4.36538]
[1725731181892,0.61249289,2290.9,2290.7,4.36538]
[1725731182184,0.61249289,2290.9,2290.8,0.07514201]
[1725731182386,0.61249289,2290.9,2290.8,4.36528]
[1725731182590,0.61249289,2290.9,2290.8,9.67876801]
[1725731182891,0.60781936,2291.2,2291.0,4.36486]
[1725731183192,0.60781936,2291.2,2290.8,4.36513]
[1725731183193,0.61249289,2291.1,2290.8,4.36513]
[1725731183362,1.22031225,2291.1,2290.8,4.36513]
[1725731183558,0.60781936,2291.1,2290.6,4.36551]
[1725731183747,0.60781936,2291.1,2291.0,4.3649]
[1725731184188,0.60781936,2291.1,2290.8,4.36524]
[1725731184189,1.22031225,2291.1,2290.8,8.73035]
[1725731184397,1.22031225,2291.1,2290.8,4.36511]
[1725731185009,2.3942,2290.9,2290.4,4.36603]
[1725731185284,2.3942,2290.9,2289.9,2.3269]
[1725731185285,2.0,2290.7,2290.2,4.3663]
[1725731185615,5.60781936,2290.7,2290.3,4.3662]
[1725731185945,5.60781936,2290.7,2290.2,4.3663]
[1725731186145,0.61578194,2290.6,2290.2,4.3663]
[1725731186389,3.61578194,2290.6,2290.2,4.3663]
[1725731186684,3.61578194,2290.6,2290.3,4.36605]
[1725731186856,3.0,2290.6,2290.4,4.36604]
[1725731187445,3.0,2290.6,2289.8,4.36712]
[1725731187446,3.0,2290.6,2290.5,8.7317]
[1725731187650,3.0,2290.8,2290.6,4.36549]
[1725731188380,3.0,2290.8,2290.5,4.36585]
[1725731188551,3.0,2290.8,2290.5,8.7317]
[1725731188752,3.0,2290.8,2290.6,4.36565]
[1725731188952,3.60781936,2290.8,2290.5,8.73159]
[1725731189187,3.60781936,2290.8,2290.5,4.36574]
[1725731189882,0.13141383,2290.5,2290.3,4.36608]
[1725731190790,0.13141383,2290.5,2290.4,4.36599]
[1725731191287,0.13141383,2290.5,2290.4,4.44178449]
[1725731192858,0.13141383,2290.5,2290.4,0.07579449]
[1725731193265,3.13141383,2290.5,2290.4,0.07579449]
[1725731194594,3.13141383,2290.5,2290.4,4.44183449]
[1725731195581,2.0,2290.7,2290.5,4.36575]
[1725731195787,2.0,2290.7,2290.6,0.07550756]
[1725731196494,3.0,2290.8,2290.7,4.36547]
[1725731196800,2.15653476,2292.6,2291.0,4.3649]
[1725731196801,4.4727,2291.3,2291.0,4.3649]
[1725731196952,4.4727,2291.3,2290.7,5.24612376]
[1725731196953,9.9027,2291.8,2291.5,4.36395]
[1725731197155,2.4727,2291.8,2291.6,4.43748642]
[1725731197386,1.22031225,2291.7,2291.6,4.43748642]
[1725731197785,1.22031225,2291.7,2291.6,0.07391642]
[1725731199210,0.60781936,2291.7,2291.6,8.80143642]
[1725731199489,0.61249289,2291.8,2291.6,4.43767642]
[1725731199691,0.61249289,2291.8,2291.6,8.80143642]
[1725731199877,0.61249289,2291.8,2291.7,4.36357]
[1725731200193,0.60781936,2292.0,2291.9,4.36319]
[1725731200574,0.60781936,2292.0,2291.9,4.43611094]
[1725731200904,1.22031225,2292.0,2291.9,4.43611094]
[1725731202494,1.22031225,2292.0,2291.9,8.79930094]
[1725731202694,0.60781936,2292.2,2292.1,4.36274]
[1725731202900,0.60781936,2292.2,2292.1,3.75024711]
[1725731203082,0.60781936,2292.2,2292.1,3.82273407]
[1725731203806,11.16926369,2292.6,2292.5,4.36205]
[1725731203807,7.43,2292.6,2292.5,4.36205]
[1725731204016,7.43,2292.6,2292.5,8.7241]
[1725731204300,7.43,2292.6,2292.5,8.79595019]
[1725731205715,11.03781936,2292.6,2292.5,8.79595019]
[1725731207216,3.60781936,2292.6,2292.5,8.79595019]
[1725731207381,3.0,2292.9,2292.7,4.36162]
[1725731207716,3.60781936,2292.9,2292.8,0.07034889]
[1725731208019,2.56145181,2293.1,2292.9,4.36125]
[1725731208020,0.56145181,2293.1,2292.9,4.36125]
[1725731208216,0.85992712,2293.0,2292.8,4.43181889]
[1725731208506,1.46774648,2293.0,2292.8,4.43181889]
[1725731208709,0.56145181,2292.9,2292.8,4.43181889]
[1725731209010,1.16927117,2292.9,2292.8,0.07034889]
[1725731209391,1.16927117,2292.9,2292.6,4.36171]
[1725731209591,1.16927117,2292.9,2292.8,0.07030468]
[1725731209918,1.16927117,2292.9,2292.7,4.36156]
[1725731210142,1.672191,2292.9,2292.8,0.07030468]
[1725731210417,4.672191,2292.9,2292.8,0.07030468]
[1725731210880,4.672191,2292.9,2292.7,4.36156]
[1725731211081,4.672191,2292.9,2292.8,0.07030468]
[1725731211305,4.672191,2292.9,2292.7,4.36156]
[1725731211500,4.16927117,2292.9,2292.8,0.07030468]
[1725731211818,1.16927117,2292.9,2292.7,4.36156]
[1725731212117,0.60781936,2292.9,2292.8,0.07030468]
[1725731212334,0.60781936,2292.9,2292.7,4.36156]
[1725731212542,0.60781936,2292.9,2292.8,0.07030468]
[1725731212698,0.60781936,2292.9,2292.7,4.36156]
[1725731212899,0.60781936,2292.9,2292.8,0.07030468]
[1725731213093,0.60781936,2292.9,2292.7,4.36156]
[1725731213312,0.60781936,2292.9,2292.8,0.07030468]
[1725731213513,0.60781936,2292.9,2292.7,4.36156]
[1725731213722,0.60781936,2292.9,2292.8,0.07030468]
[1725731214000,1.16927117,2292.9,2292.8,0.07030468]
[1725731214241,1.78619829,2292.9,2292.8,0.07030468]
[1725731214937,1.78619829,2292.9,2292.5,4.362]
[1725731215241,1.16927117,2292.9,2292.8,0.07030468]
[1725731215731,3.46617117,2292.9,2292.8,0.07030468]
[1725731215946,6.46617117,2292.9,2292.4,4.36205]
[1725731216252,6.46617117,2292.9,2292.2,6.69079]
[1725731216253,2.0,2292.7,2292.2,8.72492]
[1725731216437,6.82836285,2292.7,2292.3,4.36242]
[1725731216841,6.82836285,2292.7,2292.0,8.72567]
[1725731217162,2.2969,2292.5,2292.0,8.7257]
[1725731217337,2.90471936,2292.5,2292.0,8.7257]
[1725731217542,3.0,2292.4,2292.1,4.36277]
[1725731218210,3.0,2292.4,2291.7,6.70076]
[1725731218211,3.0,2292.4,2292.2,4.36259]
[1725731218425,3.0,2292.4,2292.2,8.7251]
[1725731218625,3.0,2292.4,2292.2,8.72502]
[1725731218857,3.0,2292.4,2292.2,4.36251]
[1725731219458,3.0,2292.4,2292.1,4.36278]
[1725731220172,3.0,2292.4,2292.2,4.36259]
[1725731220338,3.0,2292.4,2292.1,4.36278]
[1725731220339,3.0,2292.4,2292.1,4.36272]
[1725731220536,3.0,2292.4,2292.1,4.36278]
[1725731220537,3.9643983,2292.4,2292.1,4.36278]
[1725731221361,3.9643983,2292.4,2292.2,0.07112453]
[1725731223127,4.3007155,2292.3,2292.2,0.07112453]
[1725731223329,7.20543486,2292.3,2291.9,4.36316]
[1725731223527,3.0,2292.2,2291.8,4.36319]
[1725731224071,3.0,2292.2,2292.1,4.36281]
[1725731224658,5.0,2292.4,2292.2,4.3626]
[1725731224873,5.60781936,2292.4,2292.2,4.3626]
[1725731225846,0.60781936,2292.3,2292.2,4.3626]
[1725731226046,3.60781936,2292.3,2292.2,4.3626]
[1725731227566,3.0,2292.3,2292.2,4.3626]
[1725731227804,3.0,2292.5,2292.3,4.36242]
[1725731229202,3.0,2292.5,2292.3,8.72468]
[1725731229407,4.16927117,2292.6,2292.3,8.72468]
[1725731229702,5.524069,2292.6,2292.3,8.72468]
[1725731230008,5.524069,2292.6,2292.3,8.72466]
[1725731230909,5.524069,2292.6,2292.3,4.36232]
[1725731231115,5.524069,2292.6,2292.3,8.72465]
[1725731231779,5.524069,2292.6,2292.3,4.36232]
[1725731232778,5.524069,2292.6,2292.3,8.72462]
[1725731232978,4.16927117,2292.6,2292.4,4.36223]
[1725731233175,3.60781936,2292.6,2292.5,4.36205]
[1725731233409,0.60781936,2292.6,2292.5,4.36205]
[1725731233780,0.60781936,2292.8,2292.7,4.36166]
[1725731235119,7.43,2293.0,2292.9,4.36128]
[1725731235317,4.4658,2293.3,2292.9,4.36128]
[1725731235318,5.02725181,2293.3,2292.9,4.36128]
[1725731235480,0.56145181,2293.0,2292.9,4.36128]
[1725731235906,1.16927117,2293.0,2292.9,4.36128]
[1725731236211,1.16927117,2293.0,2292.9,4.43129903]
[1725731239325,3.16927117,2293.0,2292.9,0.07001903]
[1725731239525,9.89574164,2293.0,2292.3,4.36242]
[1725731239737,3.73926369,2292.8,2292.3,4.36242]
[1725731240025,2.4658,2292.6,2292.3,4.36242]
[1725731240228,2.4658,2292.6,2292.0,4.36293]
[1725731240229,7.37433486,2292.6,2292.0,4.36293]
[1725731240434,5.39525285,2292.5,2292.0,8.72577]
[1725731240631,5.39525285,2292.5,2292.0,8.72574]
[1725731241131,5.39525285,2292.5,2292.0,4.36284]
[1725731241992,5.39525285,2292.5,2292.0,8.72575]
[1725731242194,2.4658,2292.3,2291.8,4.36326]
[1725731242428,0.60781936,2292.2,2291.8,4.36326]
[1725731242928,3.60781936,2292.2,2291.6,4.36358]
[1725731243104,3.60781936,2292.2,2291.7,4.36347]
[1725731243300,3.60781936,2292.2,2291.6,4.36358]
[1725731243301,2.0,2292.1,2291.6,4.36358]
[1725731243516,0.55,2292.0,2291.6,4.36358]
[1725731243714,3.55,2292.0,2291.6,4.36358]
[1725731244632,3.55,2292.0,2291.6,8.72724]
[1725731244802,3.55,2292.0,2291.7,4.36354]
[1725731245136,3.0,2292.0,2291.8,4.36322]
[1725731245327,2.0,2292.1,2291.8,4.36322]
[1725731245328,5.0,2292.1,2291.8,4.36322]
[1725731246211,7.10037645,2292.1,2291.7,4.36354]
[1725731246407,0.60781936,2292.0,2291.7,8.72701]
[1725731246602,3.60781936,2292.0,2291.7,8.72701]
[1725731247011,3.60781936,2292.0,2291.7,4.36347]
[1725731247838,3.60781936,2292.0,2291.7,8.72692]
[1725731248001,3.0,2292.0,2291.8,4.36324]
[1725731248301,5.0,2292.1,2291.8,4.36324]
[1725731248502,3.0,2292.0,2291.9,4.36313]
[1725731248736,3.0,2292.2,2291.9,4.36313]
[1725731248908,3.0,2292.2,2291.8,4.36324]
[1725731249314,3.0,2292.2,2291.8,8.72651]
[1725731249517,4.23743349,2292.2,2291.8,4.36324]
[1725731249824,4.84525285,2292.2,2291.8,4.36324]
[1725731251337,4.84525285,2292.2,2291.9,0.071633]
[1725731252644,0.60781936,2292.1,2291.9,0.071633]
[1725731254313,0.60781936,2292.1,2291.9,4.434803]
[1725731254949,0.60781936,2292.1,2291.9,0.071633]
[1725731263299,0.60781936,2292.1,2291.9,4.434823]
[1725731264193,0.60781936,2292.1,2291.9,0.071633]
[1725731268609,0.60781936,2292.1,2291.9,4.434793]
[1725731269701,0.60781936,2292.1,2292.0,8.726]
[1725731269903,3.0,2292.3,2292.1,4.36271]
[1725731270106,5.0,2292.4,2292.2,0.07146354]
[1725731270841,2.0,2292.4,2292.3,4.36243]
[1725731271204,2.0,2292.4,2292.3,4.43373557]
[1725731271449,2.0,2292.4,2292.3,0.07130557]
[1725731271735,2.0,2292.4,2292.2,8.7251]
[1725731271941,2.0,2292.4,2292.3,0.07130557]
[1725731272164,2.81515637,2292.4,2292.1,4.3628]
[1725731272321,2.0,2292.4,2292.3,0.07130557]
[1725731272659,2.0,2292.4,2292.1,4.3628]
[1725731272808,2.0,2292.4,2292.3,0.07130557]
[1725731273010,2.86892164,2292.4,2292.0,4.36286]
[1725731273224,2.86892164,2292.4,2292.3,0.07130557]
[1725731273519,3.41892164,2292.4,2292.3,0.07130557]
[1725731273839,6.41892164,2292.4,2292.0,4.36286]
[1725731274321,3.0,2292.3,2292.1,0.07162153]
[1725731275412,2.4977,2292.2,2292.1,0.07162153]
[1725731275611,2.4977,2292.2,2291.9,4.3631]
[1725731275833,2.4977,2292.2,2292.1,0.07149377]
[1725731276038,2.4977,2292.2,2292.0,0.07165177]
[1725731276343,2.4977,2292.2,2292.1,0.07149377]
[1725731276548,2.4977,2292.2,2291.9,4.3631]
[1725731276735,2.4977,2292.2,2291.8,4.36325]
[1725731276736,2.4977,2292.2,2292.1,0.07149377]
[1725731276939,2.4977,2292.2,2292.0,4.43464177]
[1725731277138,2.4977,2292.2,2292.1,0.07149377]
[1725731279145,4.09910451,2292.3,2292.1,0.07149377]
[1725731284063,4.09910451,2292.3,2292.1,4.43428377]
[1725731284263,3.0,2292.3,2292.1,4.43428377]
[1725731286354,3.0,2292.3,2292.1,4.43421377]
[1725731289558,3.0,2292.3,2292.2,4.36262]
[1725731289762,5.0,2292.4,2292.3,4.36243]
[1725731289967,2.0,2292.4,2292.3,8.72486]
[1725731290127,5.0,2292.4,2292.3,0.0711729]
[1725731290327,5.0,2292.4,2292.1,4.36265]
[1725731290658,3.0,2292.3,2292.2,0.07133087]
[1725731290848,5.0,2292.4,2292.2,0.07133087]
[1725731291065,5.96196393,2292.4,2292.2,0.07133087]
[1725731291868,5.96196393,2292.4,2292.0,4.36297]
[1725731292064,5.96196393,2292.4,2292.3,0.0710746]
[1725731292277,6.51196393,2292.4,2292.0,4.36297]
[1725731292455,6.51196393,2292.4,2292.3,0.07103058]
[1725731292658,6.51196393,2292.4,2292.0,4.36297]
[1725731292866,6.51196393,2292.4,2292.3,0.07102483]
[1725731293050,6.51196393,2292.4,2292.1,4.3628]
[1725731293257,6.51196393,2292.4,2292.3,0.07100482]
[1725731293487,6.51196393,2292.4,2292.2,0.07092547]
[1725731293648,6.51196393,2292.4,2292.3,0.0707675]
[1725731294053,6.51196393,2292.4,2292.1,4.3628]
[1725731294252,5.55,2292.4,2292.3,0.0707675]
[1725731294481,5.55,2292.4,2292.2,0.07092547]
[1725731294668,5.0,2292.4,2292.3,0.0707675]
[1725731295053,5.0,2292.4,2292.2,4.36257]
[1725731295401,5.0,2292.4,2292.3,0.0707675]
[1725731295555,5.0,2292.4,2292.2,4.36257]
[1725731295754,5.0,2292.4,2292.3,0.0707675]
[1725731295946,5.0,2292.4,2292.2,4.36257]
[1725731296149,5.0,2292.4,2292.3,0.0707675]
[1725731296348,5.0,2292.4,2292.2,4.36257]
[1725731296567,5.0,2292.4,2292.3,0.0707675]
[1725731296843,5.0,2292.4,2292.2,4.36257]
[1725731297088,5.0,2292.4,2292.3,0.07062074]
[1725731297294,5.96196393,2292.4,2292.3,0.07062074]
[1725731297586,5.96196393,2292.4,2292.3,0.07061954]
[1725731297891,5.96196393,2292.4,2292.2,4.36257]
[1725731298095,5.0,2292.4,2292.3,0.07061954]
[1725731298454,5.0,2292.4,2292.2,4.36257]
[1725731298756,5.0,2292.4,2292.3,0.07061954]
[1725731298967,2.0,2292.4,2292.2,4.36257]
[1725731299147,5.0,2292.4,2292.3,0.07061954]
[1725731299344,2.95783393,2292.4,2292.1,8.72541]
[1725731299588,3.0,2292.3,2292.1,8.72541]
[1725731299744,2.16644887,2292.4,2292.1,8.72541]
[1725731300147,2.0,2292.4,2292.1,8.72541]
[1725731300348,2.0,2292.4,2292.2,4.36258]
[1725731300946,3.0,2292.5,2292.2,4.36258]
[1725731301146,4.0115992,2292.5,2292.2,4.36258]
[1725731302955,4.0115992,2292.5,2292.1,4.3628]
[1725731303487,4.18455053,2292.5,2292.1,4.3628]
[1725731303691,4.0115992,2292.5,2292.2,4.36258]
[1725731303857,3.0,2292.5,2292.2,6.67758]
[1725731304184,2.5376527,2292.7,2292.2,6.67758]
[1725731304185,3.0,2292.6,2292.3,4.3623]
[1725731304688,3.0,2292.6,2292.4,4.36213]
[1725731307183,3.0,2292.6,2292.3,4.3624]
[1725731307384,3.5376527,2292.6,2292.3,4.3624]
[1725731307790,3.5376527,2292.6,2292.4,4.36211]
[1725731308095,7.43,2292.9,2292.7,4.36156]
[1725731308297,0.16948793,2293.0,2292.7,4.36156]
[1725731308483,6.55454021,2293.1,2292.7,4.36156]
[1725731308885,7.11599202,2293.1,2292.7,4.36156]
[1725731309086,7.82759122,2293.1,2292.7,4.36156]
[1725731309308,3.0,2293.0,2292.7,4.36156]
[1725731311269,3.0,2293.0,2292.8,0.06647428]
[1725731311689,3.0,2293.0,2292.7,4.36156]
[1725731312017,3.0,2293.0,2292.8,0.06647428]
[1725731312169,3.0,2293.0,2292.7,4.36156]
[1725731312530,3.0,2293.0,2292.9,0.06631639]
[1725731312680,3.0,2293.0,2292.8,0.06647428]
[1725731312885,3.0,2293.0,2292.9,0.06631639]
[1725731313704,3.0,2293.0,2292.7,4.36156]
[1725731313919,3.0,2293.0,2292.9,0.06631639]
[1725731314117,3.0,2293.0,2292.8,4.42791428]
[1725731314288,3.0,2293.0,2292.9,0.06631639]
[1725731319736,3.0,2293.0,2292.7,4.36156]
[1725731320036,3.0,2293.0,2292.8,0.06610626]
[1725731320193,3.0,2293.0,2292.7,8.72314]
[1725731320391,3.0,2293.0,2292.9,0.06594838]
[1725731320594,3.0,2293.0,2292.9,11.89485384]
[1725731320819,9.43,2293.4,2293.2,4.36053]
[1725731320820,7.43,2293.4,2293.2,4.36053]
[1725731321027,0.70946074,2293.5,2293.2,4.36053]
[1725731321345,2.12193932,2293.4,2293.3,0.06531696]
[1725731321515,2.12193932,2293.4,2293.2,4.36053]
[1725731321904,2.0,2293.7,2293.2,4.36053]
[1725731321905,3.56048751,2293.7,2293.3,0.06531696]
[1725731322108,4.65959202,2293.7,2293.4,4.36033]
[1725731322309,4.83214528,2293.7,2293.4,4.36033]
[1725731322565,4.83214528,2293.7,2293.5,0.06484436]
[1725731322722,0.5376527,2293.6,2293.5,0.06484436]
[1725731323118,3.5376527,2293.6,2293.5,0.06484436]
[1725731323450,3.5376527,2293.6,2293.5,4.42498436]
[1725731323934,3.5376527,2293.6,2293.5,6.71838436]
[1725731324135,0.5376527,2293.6,2293.5,6.71838436]
[1725731326317,0.5376527,2293.6,2293.5,7.61331604]
[1725731326950,0.5376527,2293.6,2293.5,11.97345604]
[1725731328454,0.5376527,2293.6,2293.5,7.61331604]
[1725731332163,0.5376527,2293.6,2293.5,5.31991604]
[1725731335476,0.56145181,2293.7,2293.6,4.35995]
[1725731335766,0.56145181,2293.7,2293.6,4.42404317]
[1725731336561,0.56145181,2293.7,2293.6,0.06409317]
[1725731336763,1.09910451,2293.7,2293.6,0.06409317]
[1725731337673,2.47808736,2293.7,2293.6,0.06409317]
[1725731338052,2.47808736,2293.7,2293.3,4.36036]
[1725731338373,1.64910451,2293.7,2293.3,4.36036]
[1725731338574,0.5376527,2293.7,2293.4,4.42470406]
[1725731338877,0.5376527,2293.7,2293.5,4.36011]
[1725731339378,0.5376527,2293.7,2293.6,0.06407847]
[1725731341496,2.09814021,2293.7,2293.6,0.06407847]
[1725731341776,2.4273,2293.3,2293.0,4.36107]
[1725731341959,3.98778751,2293.3,2293.0,4.36107]
[1725731342170,6.98778751,2293.3,2292.8,4.36138]
[1725731342360,7.52544021,2293.3,2292.8,4.36138]
[1725731342675,1.56048751,2293.1,2292.6,6.73868]
[1725731342880,1.56048751,2293.1,2292.7,4.36156]
[1725731343086,1.56048751,2292.9,2292.4,4.36209]
[1725731343376,1.56048751,2292.9,2292.5,4.36204]
[1725731343582,4.56048751,2292.9,2292.5,4.36204]